bitfinex-derivatives/quotes_BNBF0:USTF0_20251220
["timestamp","ask_amount","ask_price","bid_price","bid_amount"]
[1766201989360,5.88082145,859.94,858.68,0.86647355]
[1766201990361,5.88082145,859.94,858.66,0.86647355]
[1766201991266,5.88082145,859.94,858.65,0.86647355]
[1766201992368,5.88082145,859.94,858.63,0.86647355]
[1766201993268,5.88082145,859.94,858.62,0.86647355]
[1766201994470,5.88082145,859.94,858.61,0.86647355]
[1766201995367,5.88082145,859.94,858.6,0.86647355]
[1766201996372,5.88082145,859.94,858.59,0.86647355]
[1766201997374,5.88082145,859.94,858.55,0.86647355]
[1766201999271,5.88082145,859.94,858.54,0.86647355]
[1766202001174,5.88082145,859.94,858.53,0.86647355]
[1766202003277,5.88082145,859.94,858.52,0.86647355]
[1766202005276,5.88082145,859.94,858.51,0.86647355]
[1766202007381,5.88082145,859.94,858.5,0.86647355]
[1766202010886,5.88082145,859.94,858.49,0.86647355]
[1766202018497,5.88082145,859.94,858.56,0.86647355]
[1766202018700,5.88082145,859.94,858.66,0.86647355]
[1766202019400,5.88082145,859.94,858.67,0.86647355]
[1766202020397,5.88082145,859.94,858.71,0.86647355]
[1766202020696,5.88082145,859.94,858.56,6.10588752]
[1766202020697,5.88082145,859.94,858.81,0.86647355]
[1766202021101,5.88082145,859.94,858.83,0.86647355]
[1766202022203,5.88082145,859.94,858.84,0.86647355]
[1766202023409,5.88082145,859.94,858.85,0.86647355]
[1766202025305,5.88082145,859.94,858.86,0.86647355]
[1766202026506,5.88082145,859.94,858.87,0.86647355]
[1766202028208,5.88082145,859.94,858.88,0.86647355]
[1766202029208,5.88082145,859.94,858.73,1.16036175]
[1766202029409,5.88082145,859.94,858.89,0.85983451]
[1766202030304,5.88082145,859.94,858.9,0.85983451]
[1766202031409,5.88082145,859.94,858.92,0.85983451]
[1766202032207,0.20238383,860.05,858.92,0.85983451]
[1766202032510,0.20238383,860.05,858.94,0.85983451]
[1766202033410,0.20238383,860.05,858.95,0.85983451]
[1766202034411,0.20238383,860.05,858.96,0.85983451]
[1766202035206,0.20238383,860.05,858.97,0.85983451]
[1766202036412,0.20238383,860.05,858.98,0.85983451]
[1766202037409,0.20238383,860.05,859.0,0.85983451]
[1766202038314,0.20238383,860.05,859.01,0.85983451]
[1766202038815,0.20238383,860.05,858.98,0.85983451]
[1766202039315,0.20238383,860.05,858.99,0.85983451]
[1766202043917,0.20238383,860.05,859.07,0.85983451]
[1766202044112,0.20238383,860.05,859.1,0.85983451]
[1766202045316,0.20238383,860.05,859.09,0.85983451]
[1766202046418,0.20238383,860.05,859.08,0.85983451]
[1766202048713,0.20238383,860.05,859.09,0.85983451]
[1766202049420,0.20238383,860.05,859.08,0.85983451]
[1766202053224,0.20238383,860.05,859.07,0.85983451]
[1766202058830,0.20238383,860.05,859.09,0.85983451]
[1766202062234,0.20238383,860.05,859.1,0.85983451]
[1766202065136,0.20238383,860.05,859.11,0.85983451]
[1766202067231,0.20238383,860.05,859.12,0.85983451]
[1766202068140,0.20238383,860.05,859.13,0.85983451]
[1766202070345,0.20238383,860.05,859.14,0.85983451]
[1766202071246,0.20238383,860.05,859.15,0.85983451]
[1766202072144,0.20238383,860.05,859.16,0.85983451]
[1766202073245,0.20238383,860.05,859.17,0.85983451]
[1766202074343,0.20238383,860.05,859.19,0.85983451]
[1766202075247,0.20238383,860.05,859.2,0.85983451]
[1766202076149,0.20238383,860.05,859.21,0.85983451]
[1766202076449,0.20238383,860.05,859.22,0.85983451]
[1766202077149,0.20238383,860.05,859.23,0.85983451]
[1766202077348,0.20238383,860.05,859.24,0.85983451]
[1766202078349,0.20238383,860.05,859.26,0.85983451]
[1766202079149,0.20238383,860.05,859.27,0.85983451]
[1766202080149,0.20238383,860.05,859.28,0.85983451]
[1766202086158,0.20238383,860.05,859.29,0.85983451]
[1766202088958,0.20238383,860.05,859.28,0.85983451]
[1766202092162,0.20238383,860.05,859.29,0.85983451]
[1766202096362,0.20238383,860.05,859.3,0.85983451]
[1766202098169,0.20238383,860.05,859.31,0.85983451]
[1766202098867,0.20238383,860.05,859.32,0.85983451]
[1766202100172,0.20238383,860.05,859.33,0.85983451]
[1766202102181,0.20238383,860.05,859.34,0.85983451]
[1766202103174,0.20238383,860.05,859.37,0.85983451]
[1766202107978,0.20238383,860.05,859.43,0.85983451]
[1766202108477,0.20238383,860.05,859.42,0.85983451]
[1766202110280,0.20238383,860.05,859.41,0.85983451]
[1766202113378,0.20238383,860.05,859.4,0.85983451]
[1766202118185,0.20238383,860.05,859.39,0.85983451]
[1766202128487,0.20238383,860.05,859.38,0.85983451]
[1766202128890,0.20238383,860.05,859.37,0.85983451]
[1766202138895,0.20238383,860.05,858.56,4.94552577]
[1766202138896,0.20238383,860.05,859.38,0.85983451]
[1766202141902,0.20238383,860.05,859.35,0.85983451]
[1766202142098,0.20238383,860.05,859.2,0.85983451]
[1766202142402,0.20238383,860.05,859.1,0.85983451]
[1766202143403,0.20238383,860.05,859.09,0.85983451]
[1766202144505,0.20238383,860.05,859.08,0.86535025]
[1766202145305,0.20238383,860.05,859.02,6.2516568]
[1766202145306,0.20238383,860.05,859.07,0.86535025]
[1766202146404,0.20238383,860.05,859.06,0.86535025]
[1766202147305,0.20238383,860.05,859.05,0.86535025]
[1766202148408,0.20238383,860.05,859.04,0.86535025]
[1766202150312,0.20238383,860.05,859.03,0.86535025]
[1766202151309,0.20238383,860.05,859.02,7.11700705]
[1766202152509,0.20238383,860.05,859.02,6.2516568]
[1766202152714,0.20238383,860.05,859.02,7.11586532]
[1766202153314,0.20238383,860.05,859.02,6.2516568]
[1766202173033,44.83642909,860.08,859.02,6.2516568]
[1766202173336,0.20243563,859.8,859.02,6.2516568]
[1766202173634,9.42166629,859.8,859.02,6.2516568]
[1766202191551,9.42166629,859.8,859.02,7.11586532]
[1766202193350,9.42166629,859.8,859.03,0.86420852]
[1766202194354,9.42166629,859.8,859.04,0.86420852]
[1766202195352,9.42166629,859.8,859.05,0.86420852]
[1766202196456,9.42166629,859.8,859.06,0.86420852]
[1766202197356,9.42166629,859.8,859.07,0.86420852]
[1766202198454,9.42166629,859.8,859.08,0.86420852]
[1766202199352,9.42166629,859.8,859.1,0.86420852]
[1766202200357,9.42166629,859.8,859.12,0.86420852]
[1766202201358,9.42166629,859.8,859.17,0.86420852]
[1766202224578,9.42166629,859.8,858.93,0.86420852]
[1766202224775,9.42166629,859.8,858.9,0.86420852]
[1766202224776,1.16502721,859.78,858.9,0.86420852]
[1766202225280,9.42166629,859.8,858.85,0.86420852]
[1766202226177,9.42166629,859.8,858.83,0.86420852]
[1766202227179,9.42166629,859.8,858.81,0.86420852]
[1766202227377,9.42166629,859.8,858.79,0.86420852]
[1766202227582,9.42166629,859.8,858.83,0.86420852]
[1766202228285,9.42166629,859.8,858.82,0.86420852]
[1766202229382,9.42166629,859.8,858.81,0.86420852]
[1766202230282,9.42166629,859.8,858.8,0.86420852]
[1766202231179,9.42166629,859.8,858.79,0.86420852]
[1766202233285,9.42166629,859.8,858.78,0.86420852]
[1766202234386,9.42166629,859.8,858.77,0.86420852]
[1766202236486,9.42166629,859.8,858.76,0.86420852]
[1766202238687,9.42166629,859.8,858.67,0.86420852]
[1766202239388,1.16502721,859.77,858.54,0.86420852]
[1766202241382,1.16502721,859.77,858.38,1.16036175]
[1766202241383,1.16502721,859.79,858.52,0.86420852]
[1766202242290,10.5866935,859.8,858.51,0.86420852]
[1766202243393,9.42166629,859.8,858.49,0.86420852]
[1766202244289,9.42166629,859.8,858.48,0.86420852]
[1766202244689,9.42166629,859.8,858.48,0.8639704]
[1766202245188,9.42166629,859.8,858.47,0.8639704]
[1766202246289,9.42166629,859.8,858.46,0.8639704]
[1766202248189,9.42166629,859.8,858.45,0.8639704]
[1766202249190,9.42166629,859.8,858.44,10.41632728]
[1766202250991,9.42166629,859.8,858.44,0.8639704]
[1766202251188,9.42166629,859.8,858.42,0.8639704]
[1766202252393,9.42166629,859.8,858.41,0.8639704]
[1766202255196,9.42166629,859.8,858.4,0.8639704]
[1766202259298,9.42166629,859.8,858.39,0.8639704]
[1766202265200,9.42166629,859.8,858.4,0.8639704]
[1766202268996,9.42166629,859.8,858.39,0.8639704]
[1766202269400,9.42166629,859.8,858.4,0.8639704]
[1766202271202,9.42166629,859.8,858.41,0.8639704]
[1766202273402,9.42166629,859.8,858.42,0.8639704]
[1766202275200,9.42166629,859.8,858.43,0.8639704]
[1766202276405,9.42166629,859.8,858.44,0.8639704]
[1766202277305,9.42166629,859.8,858.29,1.36290165]
[1766202277306,9.42166629,859.8,858.45,0.8639704]
[1766202278306,10.5866935,859.8,858.46,0.8639704]
[1766202279006,10.5866935,859.8,858.47,0.8639704]
[1766202279007,9.42166629,859.8,858.47,0.8639704]
[1766202279212,10.5866935,859.8,858.48,0.8639704]
[1766202279606,1.16502721,859.78,858.47,0.8639704]
[1766202280308,1.16502721,859.77,858.48,0.8639704]
[1766202281310,1.16502721,859.76,858.49,0.8639704]
[1766202282412,1.16502721,859.74,858.51,0.8639704]
[1766202283212,1.16502721,859.74,858.24,8.92752544]
[1766202283213,1.16502721,859.72,858.53,0.8639704]
[1766202284208,1.16502721,859.7,858.55,0.8639704]
[1766202287216,1.16502721,859.69,858.56,0.8639704]
[1766202289213,1.16502721,859.68,858.57,0.8639704]
[1766202291312,1.16502721,859.67,858.58,0.8639704]
[1766202292313,1.16502721,859.66,858.58,0.8639704]
[1766202293319,1.16502721,859.66,858.59,0.8639704]
[1766202294320,1.16502721,859.65,858.6,0.8639704]
[1766202295420,1.16502721,859.64,858.61,0.8639704]
[1766202296522,1.16502721,859.62,858.62,0.8639704]
[1766202297224,1.16502721,859.61,858.64,0.8639704]
[1766202298224,0.20243563,859.8,858.24,8.92752544]
[1766202298225,1.16502721,859.58,858.67,0.8639704]
[1766202302822,1.16502721,859.57,858.67,0.8639704]
[1766202318942,1.16502721,859.52,858.63,0.8639704]
[1766202322846,1.16502721,859.52,858.32,1.74054263]
[1766202322847,1.16502721,859.51,858.62,0.8639704]
[1766202328952,1.16502721,859.56,858.66,0.8639704]
[1766202335154,1.16502721,859.56,858.67,0.8639704]
[1766202358987,48.70839795,859.72,858.63,0.8639704]
[1766202358988,1.16502721,859.52,858.63,0.8639704]
[1766202359188,1.16502721,859.7,858.81,0.8639704]
[1766202359384,46.96085713,859.72,858.78,0.8639704]
[1766202359888,46.96085713,859.72,858.87,0.8639704]
[1766202361289,46.96085713,859.72,858.84,0.8639704]
[1766202362185,46.96085713,859.72,858.83,0.8639704]
[1766202363186,46.96085713,859.72,858.81,0.8639704]
[1766202364287,46.96085713,859.72,858.8,0.8639704]
[1766202365192,46.96085713,859.72,858.79,0.8639704]
[1766202366187,46.96085713,859.72,858.48,1.74054263]
[1766202366188,46.96085713,859.72,858.78,0.8639704]
[1766202367194,46.96085713,859.72,858.77,0.8639704]
[1766202369106,46.96085713,859.72,858.79,0.8639704]
[1766202371197,46.96085713,859.72,858.78,0.8639704]
[1766202372493,46.96085713,859.72,858.77,0.8639704]
[1766202373594,0.20249865,859.56,858.77,0.8639704]
[1766202373800,6.23906227,859.56,858.77,0.8639704]
[1766202374694,6.23906227,859.56,858.78,0.8639704]
[1766202375396,6.23906227,859.56,858.77,0.8639704]
[1766202377102,6.23906227,859.56,858.76,0.8639704]
[1766202381301,6.23906227,859.56,858.6,1.16036175]
[1766202381302,6.23906227,859.56,858.75,0.8639704]
[1766202384201,6.23906227,859.56,858.68,0.8639704]
[1766202384404,6.23906227,859.56,858.66,0.8639704]
[1766202384604,6.23906227,859.56,858.56,0.8639704]
[1766202386200,6.23906227,859.56,858.57,0.8639704]
[1766202386399,6.23906227,859.56,858.56,0.8639704]
[1766202387204,6.23906227,859.56,858.57,0.8639704]
[1766202394208,6.23906227,859.56,858.58,0.8639704]
[1766202399111,6.23906227,859.56,858.59,0.8639704]
[1766202401514,6.23906227,859.56,858.58,0.8639704]
[1766202402214,6.23906227,859.56,858.59,0.8639704]
[1766202407414,6.23906227,859.56,858.6,0.8639704]
[1766202411315,6.23906227,859.56,858.61,0.8639704]
[1766202415418,6.23906227,859.56,858.62,0.8639704]
[1766202418523,6.23906227,859.56,858.47,1.16036175]
[1766202418524,6.23906227,859.56,858.63,0.8639704]
[1766202419524,6.23906227,859.56,858.62,0.8639704]
[1766202421327,6.23906227,859.56,858.63,0.8639704]
[1766202428230,6.23906227,859.56,858.64,0.8639704]
[1766202428931,6.23906227,859.56,858.5,0.8639704]
[1766202429237,6.23906227,859.56,858.46,0.8639704]
[1766202429437,6.23906227,859.56,858.45,0.8639704]
[1766202432433,6.23906227,859.56,858.44,0.8639704]
[1766202433137,6.23906227,859.56,858.45,0.8639704]
[1766202433335,6.23906227,859.56,858.44,0.8639704]
[1766202438240,6.23906227,859.56,858.45,0.8639704]
[1766202438437,6.23906227,859.56,858.44,0.8639704]
[1766202439143,6.23906227,859.56,858.45,0.8639704]
[1766202440542,6.23906227,859.56,858.49,0.8639704]
[1766202442245,6.23906227,859.56,858.5,0.8639704]
[1766202443141,6.23906227,859.56,858.51,0.8639704]
[1766202443341,6.23906227,859.56,858.5,0.8639704]
[1766202444146,6.23906227,859.56,858.51,0.8639704]
[1766202449049,6.23906227,859.56,858.47,0.8639704]
[1766202458952,6.23906227,859.56,858.51,0.8639704]
[1766202463754,6.23906227,859.56,858.5,0.8639704]
[1766202470356,6.23906227,859.56,858.51,0.8639704]
[1766202471061,6.23906227,859.56,858.5,0.8639704]
[1766202471360,6.23906227,859.56,858.51,0.8639704]
[1766202472460,6.23906227,859.56,858.5,0.8639704]
[1766202476061,7.40408948,859.56,858.51,0.8639704]
[1766202479166,1.16502721,859.55,858.52,0.8639704]
[1766202480674,1.16502721,859.55,858.36,1.16036175]
[1766202480876,1.16502721,859.55,858.52,0.86843733]
[1766202481677,1.16502721,859.55,858.53,0.86843733]
[1766202483380,1.16502721,859.54,858.54,0.86843733]
[1766202483581,1.16502721,859.55,858.54,0.86843733]
[1766202484180,1.16502721,859.55,858.55,0.86843733]
[1766202485380,1.16502721,859.54,858.56,0.86843733]
[1766202486282,1.16502721,859.53,858.57,0.86843733]
[1766202487285,1.16502721,859.52,858.58,0.86843733]
[1766202488489,1.16502721,859.51,858.59,0.86843733]
[1766202489089,1.16502721,859.5,858.59,0.86843733]
[1766202491790,1.16502721,859.5,858.58,0.86843733]
[1766202491988,6.23906227,859.56,858.68,0.86843733]
[1766202493190,6.23906227,859.56,858.67,0.86843733]
[1766202493389,6.23906227,859.56,858.67,0.86889584]
[1766202494686,0.20249865,859.56,858.67,0.86889584]
[1766202495187,0.20249865,859.56,858.66,0.86889584]
[1766202498192,0.20249865,859.56,858.65,0.86889584]
[1766202498989,0.20249865,859.56,858.5,1.16036175]
[1766202499294,0.20249865,859.56,858.62,0.86842109]
[1766202502396,0.20249865,859.56,858.61,0.86842109]
[1766202504995,0.20249865,859.56,858.61,0.86816197]
[1766202508395,0.20249865,859.56,858.6,0.86816197]
[1766202509198,0.20249865,859.56,858.64,0.86816197]
[1766202511400,0.20249865,859.56,858.63,0.86816197]
[1766202513701,0.20249865,859.56,858.65,0.86816197]
[1766202515800,0.20249865,859.56,858.66,0.86816197]
[1766202516001,0.20249865,859.56,858.9,0.86816197]
[1766202516303,0.20249865,859.56,858.88,0.86816197]
[1766202517203,0.20249865,859.56,858.86,0.86816197]
[1766202518299,0.20249865,859.56,858.85,0.86816197]
[1766202519303,0.20249865,859.56,858.83,0.86816197]
[1766202520303,0.20249865,859.56,858.82,0.86816197]
[1766202521406,0.20249865,859.56,858.81,0.86816197]
[1766202522209,0.20249865,859.56,858.8,0.86816197]
[1766202523205,0.20249865,859.56,858.79,0.86816197]
[1766202524511,0.20249865,859.56,858.78,0.86816197]
[1766202525411,0.20249865,859.56,858.76,0.86816197]
[1766202527410,0.20249865,859.56,858.75,0.86816197]
[1766202531216,0.20249865,859.56,858.74,0.86816197]
[1766202542922,0.20249865,859.56,858.73,0.86816197]
[1766202544217,0.20249865,859.56,858.74,0.86816197]
[1766202548327,0.20249865,859.56,858.75,0.86816197]
[1766202549123,0.20249865,859.56,858.59,1.16036175]
[1766202549323,0.20249865,859.56,858.75,0.86429456]
[1766202550425,0.20249865,859.56,858.76,0.86429456]
[1766202552129,0.20249865,859.56,858.77,0.86429456]
[1766202553928,0.20249865,859.56,858.76,0.86429456]
[1766202556833,0.20249865,859.56,858.77,0.86429456]
[1766202559239,0.20249865,859.56,858.78,0.86429456]
[1766202562242,0.20249865,859.56,858.79,0.86429456]
[1766202566344,0.20249865,859.56,858.81,0.86559223]
[1766202567344,0.20249865,859.56,858.66,1.16036175]
[1766202567345,0.20249865,859.56,858.82,0.86559223]
[1766202568240,0.20249865,859.56,858.83,0.86559223]
[1766202570241,0.20249865,859.56,858.84,0.86559223]
[1766202571143,0.20249865,859.56,858.85,0.86559223]
[1766202571341,0.20249865,859.56,858.86,0.86559223]
[1766202572145,0.20249865,859.56,858.87,0.86559223]
[1766202573246,0.20249865,859.56,858.88,0.86559223]
[1766202574347,0.20249865,859.56,858.9,0.86559223]
[1766202575350,0.20249865,859.56,858.93,0.86559223]
[1766202576751,0.20249865,859.56,858.94,0.86559223]
[1766202586258,32.53895204,859.78,858.9,0.86559223]
[1766202586459,0.20249688,859.46,858.9,0.86559223]
[1766202586755,5.99844171,859.46,858.9,0.86559223]
[1766202587058,0.20250041,859.45,858.9,0.86559223]
[1766202588155,0.20250041,859.45,858.89,0.86559223]
[1766202588960,0.20250041,859.45,858.58,1.74054263]
[1766202588961,0.20250041,859.45,858.88,0.86559223]
[1766202589557,0.20250041,859.45,858.82,0.86559223]
[1766202589761,0.20250041,859.45,858.78,0.86559223]
[1766202590264,0.20250041,859.45,858.77,0.86559223]
[1766202591156,0.20250041,859.45,858.76,0.86559223]
[1766202592159,0.20250041,859.45,858.75,0.86559223]
[1766202593162,0.20250041,859.45,858.74,0.86559223]
[1766202595362,0.20250041,859.45,858.73,0.86559223]
[1766202597165,0.20250041,859.45,858.72,0.86559223]
[1766202601265,0.20250041,859.45,858.71,0.86559223]
[1766202605267,0.20250041,859.45,858.7,0.86559223]
[1766202611671,0.20250041,859.45,858.69,0.86559223]
[1766202622481,0.20250041,859.45,858.54,1.16036175]
[1766202623482,0.20250041,859.45,858.39,6.95636654]
[1766202626480,0.20250041,859.45,858.69,0.86719506]
[1766202629385,0.20250041,859.45,858.7,0.86719506]
[1766202635094,0.20250041,859.45,858.71,0.86719506]
[1766202638199,0.20250041,859.45,858.72,0.86719506]
[1766202641300,0.20250041,859.45,858.73,0.86719506]
[1766202643103,0.20250041,859.45,858.74,0.86719506]
[1766202644204,0.20250041,859.45,858.75,0.86719506]
[1766202646101,0.20250041,859.45,858.76,0.86719506]
[1766202647101,0.20250041,859.45,858.77,0.86719506]
[1766202648102,0.20250041,859.45,858.54,4.19432235]
[1766202648103,0.20250041,859.45,858.78,0.86719506]
[1766202649205,0.20250041,859.45,858.8,0.86719506]
[1766202703345,0.20250041,859.45,858.79,0.86719506]
[1766202703644,0.20250041,859.45,858.78,0.86719506]
[1766202710351,0.20250041,859.45,858.77,0.86719506]
[1766202711553,0.20250041,859.45,858.78,0.86719506]
[1766202711956,0.20250041,859.45,858.77,0.86719506]
[1766202713257,0.20250041,859.45,858.76,0.86719506]
[1766202713655,0.20250041,859.45,858.61,0.86719506]
[1766202714356,0.20250041,859.45,858.58,0.86719506]
[1766202715363,0.20250041,859.45,858.57,0.86719506]
[1766202716363,0.20250041,859.45,858.56,0.86719506]
[1766202717361,0.20250041,859.45,858.54,4.19432235]
[1766202717362,0.20250041,859.45,858.55,0.86719506]
[1766202718461,0.20250041,859.45,858.54,5.06151741]
[1766202721265,0.20250041,859.45,858.54,4.19432235]
[1766202759693,0.20250041,859.45,858.51,0.86719506]
[1766202761393,0.20250041,859.45,858.52,0.86719506]
[1766202763494,0.20250041,859.45,858.53,0.86719506]
[1766202766502,0.20250041,859.45,858.54,0.86719506]
[1766202768405,0.20250041,859.45,858.55,0.86719506]
[1766202770406,0.20250041,859.45,858.56,0.86719506]
[1766202770903,0.20250041,859.45,858.56,0.86946334]
[1766202771301,0.20250041,859.45,858.57,0.86946334]
[1766202772406,0.20250041,859.45,858.37,4.03871408]
[1766202772407,0.20250041,859.45,858.58,0.86946334]
[1766202773509,0.20250041,859.45,858.61,0.86946334]
[1766202779209,0.20250041,859.45,858.62,0.86946334]
[1766202786919,1.16205098,859.49,858.62,0.86946334]
[1766202787215,0.20256465,859.25,858.62,0.86946334]
[1766202787421,6.02121666,859.25,858.62,0.86946334]
[1766202806832,6.02121666,859.25,858.47,1.15626008]
[1766202807136,6.02121666,859.25,858.62,0.87111717]
[1766202809734,6.02121666,859.25,858.61,0.87111717]
[1766202812636,6.02121666,859.25,858.45,1.15626008]
[1766202812637,6.02121666,859.25,858.6,0.87111717]
[1766202819248,6.02121666,859.25,858.59,0.87111717]
[1766202828252,6.02121666,859.25,858.58,0.87111717]
[1766202829356,6.02121666,859.25,858.59,0.87111717]
[1766202839365,6.02121666,859.25,858.58,0.87111717]
[1766202840365,6.02121666,859.25,858.59,0.87111717]
[1766202841562,6.02121666,859.25,858.58,0.87111717]
[1766202841762,6.02121666,859.25,858.59,0.87111717]
[1766202842264,6.02121666,859.25,858.58,0.87111717]
[1766202844170,6.02121666,859.25,858.59,0.87111717]
[1766202845369,6.02121666,859.25,858.58,0.87111717]
[1766202848270,6.02121666,859.25,858.59,0.87111717]
[1766202859382,6.02121666,859.25,858.58,0.87111717]
[1766202869288,6.02121666,859.25,858.59,0.87111717]
[1766202886310,6.02121666,859.25,858.6,0.87111717]
[1766202896120,6.02121666,859.25,858.63,0.87111717]
[1766202899316,6.02121666,859.25,858.62,0.87111717]
[1766202901019,5.81865201,859.25,858.85,0.87111717]
[1766202901318,5.81865201,859.25,858.81,0.87111717]
[1766202902322,5.81865201,859.25,858.79,0.87111717]
[1766202903122,5.81865201,859.25,858.78,0.87111717]
[1766202904118,5.81865201,859.25,858.77,0.87111717]
[1766202905324,5.81865201,859.25,858.75,0.87111717]
[1766202906319,5.81865201,859.25,858.74,0.87111717]
[1766202908225,5.81865201,859.25,858.73,0.87111717]
[1766202909123,5.81865201,859.25,858.72,0.87111717]
[1766202909424,5.81865201,859.25,858.71,0.87111717]
[1766202909825,32.09932015,859.39,858.71,0.87111717]
[1766202910225,32.09932015,859.39,858.7,0.87111717]
[1766202911326,32.09932015,859.39,858.69,0.87111717]
[1766202912027,32.09932015,859.39,858.7,0.87111717]
[1766202912228,32.09932015,859.39,858.69,0.87111717]
[1766202914129,32.09932015,859.39,858.68,0.87111717]
[1766202914829,0.20254167,859.39,858.68,0.87111717]
[1766202917229,0.20254167,859.39,858.67,0.87111717]
[1766202919533,0.20254167,859.39,858.68,0.87111717]
[1766202923135,0.20254167,859.39,858.67,0.87111717]
[1766202936140,0.20254167,859.39,858.68,0.87111717]
[1766202939240,0.20254167,859.39,858.67,0.87111717]
[1766202939439,0.20254167,859.39,858.56,0.87111717]
[1766202940342,0.20254167,859.39,858.57,0.87111717]
[1766202942138,0.20254167,859.39,858.52,0.87111717]
[1766202942343,0.20254167,859.39,858.44,0.87111717]
[1766202942538,0.20254167,859.39,858.45,0.87111717]
[1766202952450,0.20254167,859.39,858.46,0.87111717]
[1766202953152,0.20254167,859.39,858.45,0.87111717]
[1766202953351,0.20254167,859.39,858.46,0.87111717]
[1766202954055,0.20254167,859.39,858.45,0.87111717]
[1766202954358,0.20254167,859.39,858.46,0.87111717]
[1766202955653,0.20254167,859.39,858.45,0.87111717]
[1766202958155,0.20254167,859.39,858.44,0.87111717]
[1766202958349,0.20254167,859.39,858.45,0.87111717]
[1766202959156,0.20254167,859.39,858.44,0.87111717]
[1766202959959,0.20254167,859.39,858.45,0.87111717]
[1766202961355,0.20254167,859.39,858.44,0.87111717]
[1766202965357,0.20254167,859.39,858.43,0.87111717]
[1766202979368,0.20254167,859.39,858.44,0.87111717]
[1766202984273,0.20254167,859.39,858.36,4.01165244]
[1766202984274,0.20254167,859.39,858.45,0.87111717]
[1766202986373,0.20254167,859.39,858.46,0.87111717]
[1766202989178,0.20254167,859.39,858.47,0.87111717]
[1766202991181,0.20254167,859.39,858.48,0.87111717]
[1766202992080,0.20254167,859.39,858.49,0.87111717]
[1766202994182,0.20254167,859.39,858.36,4.01165244]
[1766202994183,0.20254167,859.39,858.5,0.87111717]
[1766202995082,0.20254167,859.39,858.51,0.87111717]
[1766202996185,0.20254167,859.39,858.52,0.87111717]
[1766202997182,0.20254167,859.39,858.54,0.87111717]
[1766202998181,0.20254167,859.39,858.55,0.87111717]
[1766202999081,0.20254167,859.39,858.58,0.87111717]
[1766202999486,0.20254167,859.39,858.57,0.87111717]
[1766203000182,0.20254167,859.39,858.58,0.87111717]
[1766203001188,0.20254167,859.39,858.59,0.87111717]
[1766203002083,0.20254167,859.39,858.6,0.87111717]
[1766203009392,0.20254167,859.39,858.61,0.87111717]
[1766203012495,0.20254167,859.39,858.61,0.8695676]
[1766203034720,35.68764804,859.32,858.61,0.8695676]
[1766203034914,42.22270029,859.32,858.61,0.8695676]
[1766203047424,42.22270029,859.32,858.45,1.15626008]
[1766203047629,42.22270029,859.32,858.61,0.86921381]
[1766203047826,0.20258588,859.14,858.61,0.86921381]
[1766203049426,0.20258588,859.14,858.6,0.86921381]
[1766203055329,0.20258588,859.14,858.61,0.86921381]
[1766203056934,0.20258588,859.14,858.6,0.86921381]
[1766203059431,0.20258588,859.14,858.61,0.86921381]
[1766203083651,0.20258588,859.14,858.6,0.86921381]
[1766203092866,0.20258588,859.14,858.45,1.15626008]
[1766203093060,0.20258588,859.14,858.6,0.86845011]
[1766203145605,0.20258588,859.14,858.59,0.86845011]
[1766203149105,0.20258588,859.14,858.42,0.86845011]
[1766203150113,0.20258588,859.14,858.4,0.86845011]
[1766203151213,0.20258588,859.14,858.39,0.86845011]
[1766203153210,0.20258588,859.14,858.38,0.86845011]
[1766203154110,0.20258588,859.14,858.37,0.86845011]
[1766203157215,0.20258588,859.14,858.36,0.86845011]
[1766203159218,0.20258588,859.14,858.35,0.86845011]
[1766203164220,0.20258588,859.14,858.34,0.86845011]
[1766203179436,0.20258588,859.14,858.35,0.86845011]
[1766203184338,0.20258588,859.14,858.36,0.86845011]
[1766203187239,0.20258588,859.14,858.37,0.86845011]
[1766203191549,0.20258588,859.14,858.38,0.86845011]
[1766203202056,0.20258588,859.14,858.23,1.15626008]
[1766203202057,0.20258588,859.14,858.39,0.86845011]
[1766203204158,0.20258588,859.14,858.4,0.86845011]
[1766203205258,0.20258588,859.14,858.41,0.86845011]
[1766203207261,0.20258588,859.14,858.43,0.86845011]
[1766203208159,0.20258588,859.14,858.45,0.86845011]
[1766203224469,0.20258588,859.14,858.49,0.86845011]
[1766203225470,0.20258588,859.14,858.48,0.86845011]
[1766203230173,0.20258588,859.14,858.47,0.86845011]
[1766203241381,0.20258588,859.14,858.43,0.86845011]
[1766203247790,42.93425945,859.24,858.43,0.86845011]
[1766203248096,0.20260357,859.04,858.43,0.86845011]
[1766203248393,7.6831742,859.04,858.43,0.86845011]
[1766203260706,7.48057063,859.04,858.53,0.86845011]
[1766203261007,7.48057063,859.04,858.57,0.86845011]
[1766203261207,7.48057063,859.04,858.61,0.86845011]
[1766203261403,7.48057063,859.04,858.59,0.86845011]
[1766203262404,7.48057063,859.04,858.58,0.86845011]
[1766203263409,7.48057063,859.04,858.57,0.86845011]
[1766203265407,7.48057063,859.04,858.56,0.86845011]
[1766203266310,7.48057063,859.04,858.55,0.86845011]
[1766203268411,7.48057063,859.04,858.54,0.86845011]
[1766203271409,7.48057063,859.04,858.53,0.86845011]
[1766203275418,7.48057063,859.04,858.52,0.86845011]
[1766203282524,7.48057063,859.04,858.51,0.86845011]
[1766203282724,7.48057063,859.04,858.5,0.86845011]